Cogmind - Beta 15 @@@ ROGUE MODE // 2025.10.04 @ 10:34:52 Player: shapeshifter Result: Self-destructed Performance ------------- Evolutions (2) 1000 Regions Visited (6) 1200 Robots Destroyed (39) 195 Value Destroyed (1005) 1005 Prototype IDs (28) 560 Alien Tech Used (0) 0 Bonus (1120) 1120 TOTAL SCORE: 5080 Bonus ------- Follower Combat Kills 120 Entered Garrisons 200 Used RIF Installer 500 Aligned with FarCom 300 Cogmind --------- Core Integrity 181/550 Matter 230/300 Energy 11/100 System Corruption 0% Temperature Cool (0) Movement Core (800) Ox15 Location -8/Garrison Parts ------- > --- POWER (1) -------- (None) > --- PROPULSION (2) --- (None) > --- UTILITY (6) ------ Cooling System High-capacity Storage Unit Improved Salvage Targeting Computer > --- WEAPON (2) ------- Ion Cannon > --- INVENTORY (20) --- Heavy Deuterium Engine Heavy Deuterium Engine High-capacity Battery (250) Modified TNC Recoil Stabilizer ECM Suite Authchip [R/Combat] Relay Coupler [Grunt] (23) Corruption Screen Improved Medium Laser Flak Gun Plasma Cutter Deploy-a-Sentry Deploy-a-Sentry Peak State ------------ > --- POWER ------------ Heavy Deuterium Engine > --- PROPULSION ------- Wheel Wheel > --- UTILITY ---------- Cooling System Cooling System High-capacity Storage Unit 0b10 Alert Chip Improved Salvage Targeting Computer Core Shielding > --- WEAPON ----------- Improved Medium Laser Improved Medium Laser > --- INVENTORY -------- Heavy Deuterium Engine Heavy Deuterium Engine Wheel Wheel Wheel Cooling System High-capacity Battery Modified TNC Recoil Stabilizer ECM Suite Corruption Screen Improved Medium Laser Improved Medium Laser Minigun Flak Gun Advanced Assault Cannon Plasma Cutter Deploy-a-Sentry Deploy-a-Sentry Deploy-a-Sentry [Rating: 36] Favorites ----------- Power Ion Engine Engine Ion Engine Power Core Light Nuclear Core Propulsion Wheel Treads Light Treads Wheel Wheel Utility Seismic Detector Device Seismic Detector Storage High-capacity Storage Unit Processor Improved Salvage Targeting Computer Protection Core Shielding Weapon Improved Medium Laser Energy Gun Improved Medium Laser Energy Cannon Ion Cannon Ballistic Gun Light Assault Rifle Ballistic Cannon Advanced Assault Cannon Build | -11 -10 -10 -10 -9 -8 -8 ------- Run | Yrd Mat Min Exi Min Mat Gar Slots Evolved 4 | . . . . . 4 . Power . | . . . . . . . Propulsion . | . . . . . . . Utility 4 | . . . . . 4 . Weapon . | . . . . . . . Parts Attached 36 | 7 9 . . 6 9 5 Power 6 | 1 1 . . 2 2 . Engine 5 | 1 1 . . 1 2 . Core 1 | . . . . 1 . . Reactor . | . . . . . . . Propulsion 10 | 2 3 . . 3 . 2 Treads 2 | 2 . . . . . . Leg . | . . . . . . . Wheel 8 | . 3 . . 3 . 2 Hover . | . . . . . . . Flight . | . . . . . . . Utility 13 | 2 3 . . 1 6 1 Device 5 | 1 . . . 1 2 1 Storage 4 | 1 3 . . . . . Processor 2 | . . . . . 2 . Hackware . | . . . . . . . Protection 2 | . . . . . 2 . Artifact . | . . . . . . . Weapon 7 | 2 2 . . . 1 2 Energy Gun 3 | . 2 . . . . 1 Energy Cannon 1 | . . . . . . 1 Ballistic Gun 2 | 2 . . . . . . Ballistic Cannon 1 | . . . . . 1 . Launcher . | . . . . . . . Special Weapon . | . . . . . . . Impact Weapon . | . . . . . . . Slashing Weapon . | . . . . . . . Piercing Weapon . | . . . . . . . Special Melee Weapon . | . . . . . . . Unidentified Prototypes 2 | . 1 . . . 1 . Parts Lost 13 | . 1 . . . . 12 Power 1 | . . . . . . 1 Propulsion 4 | . 1 . . . . 3 Utility 4 | . . . . . . 4 Weapon 4 | . . . . . . 4 Highest Loss Streak 11 | . 1 . . . . 11 To Critical Strikes . | . . . . . . . Average Backups 14 | 5 10 17 19 16 16 16 Power 2 | . 1 1 4 3 1 2 Propulsion 2 | 2 2 3 2 1 3 1 Utility 6 | . 5 10 8 7 6 7 Weapon 2 | 1 1 2 2 2 4 4 Tool/Special . | . . . . . . . Unused Backups 35 | . 6 . 7 7 3 12 Power 8 | . . . 1 4 1 2 Propulsion 3 | . 2 . 1 . . . Utility 17 | . 2 . 5 2 1 7 Weapon 6 | . 2 . . 1 1 2 Tool/Special 1 | . . . . . . 1 Average Slot Usage (%) 98 | . 99 100 100 100 93 90 Engine 12 | . 14 14 14 12 9 7 Treads 3 | . 8 . . . . . Wheel 21 | . 19 28 28 28 18 14 Device 14 | . 14 14 14 14 16 16 Storage 12 | . 14 14 14 14 9 9 Processor 3 | . . . . . 13 17 Protection 1 | . . . . . 8 8 Energy Gun 19 | . 11 28 28 28 17 15 Ballistic Gun 6 | . 16 . . . . . Peak Build Rating 36 | 8 13 13 17 23 36 36 Average Rating 16 | 5 9 13 14 19 31 33 On Entrance 15 | . 8 13 13 17 22 36 Naked Turns . | . . . . . . . Heaviest Build 65 | 14 52 52 52 57 65 62 Greatest Support 40 | 40 40 26 26 26 20 20 Greatest Overweight (x) 14 | . 1 1 1 2 3 14 Average Overweight (x) 1 | . . 1 1 1 2 3 Largest Inventory Capacity 20 | 8 20 20 20 20 20 20 Average Capacity 16 | 7 13 20 20 20 20 20 Most Carried 20 | 8 17 18 20 20 20 20 Average Carried 15 | 5 10 17 19 19 19 19 Final Capacity 20 | 8 20 20 20 20 20 20 Final Carried 20 | 8 17 18 20 20 20 14 Class Distribution -------------------- 100% | Mutant Dominant Class ---------------- Mutant | -10/Materials Mutant | -10/Mines Mutant | -10/Exiles Mutant | -9/Mines Mutant | -8/Materials Mutant | -8/Garrison Resources | -11 -10 -10 -10 -9 -8 -8 ----------- Run | Yrd Mat Min Exi Min Mat Gar Matter Collected 1218 | 266 369 120 276 60 70 57 Remotely . | . . . . . . . Salvage Created 1137 | 82 573 66 . 178 47 191 Parts 76 | 11 43 4 . 9 1 8 Haulers Intercepted 2 | . 2 . . . . . Recyclers Shooed . | . . . . . . . Parts Field Recycled . | . . . . . . . Retrieved Matter . | . . . . . . . Parts Self-Destructed . | . . . . . . . Prevented . | . . . . . . . Kills | -11 -10 -10 -10 -9 -8 -8 ------- Run | Yrd Mat Min Exi Min Mat Gar Combat Hostiles Destroyed 27 | . 15 1 . 4 1 6 Guns 26 | . 15 1 . 4 1 5 Cannons 1 | . . . . . . 1 Classes Destroyed 9 | 1 5 . . . . 3 Worker 2 | . 1 . . 1 . . Tunneler 5 | 4 . 1 . . . . Hauler 2 | . 2 . . . . . Watcher 3 | . 3 . . . . . Swarmer 12 | . 9 . . . . 3 Grunt 12 | . 6 1 . 4 1 . Brawler 1 | . . . . . . 1 Sentry 1 | . . . . . . 1 Hunter 1 | . . . . . . 1 Best Kill Streak 7 | 2 7 2 . 2 1 3 Combat Bots Only 4 | . 4 1 . 2 1 3 Max Kills in Single Turn 1 | 1 1 1 . 1 1 1 Gunslinging . | . . . . . . . Exploded . | . . . . . . . Melee . | . . . . . . . Uniques/NPCs Destroyed . | . . . . . . . Combat | -11 -10 -10 -10 -9 -8 -8 -------- Run | Yrd Mat Min Exi Min Mat Gar Hostile Shots Fired 240 | . 87 2 . 16 4 131 Missed 65 | . 22 1 . 7 2 33 Hits 175 | . 65 1 . 9 2 98 Melee 7 | . . . . . . 7 Projectile 168 | . 65 1 . 9 2 91 Critical Strikes 3 | . . . . . 1 2 Damage Taken 2217 | . 555 13 . 147 35 1467 Core 489 | . 92 . . 28 . 369 Absorbed by Shields . | . . . . . . . Redirected to Shielding 43 | . . . . . . 43 Core Remaining (%) 76 | 100 . . . 52 . . Volleys Fired 141 | 13 64 7 . 11 7 39 Largest 2 | 2 2 2 . 2 2 2 Hottest 112 | 40 112 112 . 112 112 112 Shots Fired 264 | 26 128 14 . 22 12 62 Gun 247 | 26 128 14 . 22 10 47 Cannon 17 | . . . . . 2 15 Launcher . | . . . . . . . Special . | . . . . . . . Kinetic 150 | 26 112 . . . 2 10 Thermal 114 | . 16 14 . 22 10 52 Explosive . | . . . . . . . Electromagnetic . | . . . . . . . Robot Hit Streak 16 | 15 12 7 . 6 3 16 Robot Miss Streak 6 | 2 4 2 . 4 6 5 Penetration Max . | . . . . . . . Secondary Targets 5 | . 2 . . 1 . 2 Max Gunslinging Chain 1 | . 1 . . 1 . 1 Shots Hit Robots 153 | 20 70 9 . 11 4 39 Core Hits 61 | 6 31 3 . 7 2 12 Critical Kills 2 | 1 1 . . . . . Critical Parts Destroyed . | . . . . . . . Critical Strikes 11 | 1 3 1 . 1 2 3 Burn 8 | . 2 1 . 1 2 2 Destroy 2 | 1 1 . . . . . Blast 1 | . . . . . . 1 Melee Attacks . | . . . . . . . Impact . | . . . . . . . Slashing . | . . . . . . . Piercing . | . . . . . . . Sneak Attacks . | . . . . . . . Combat Hostiles . | . . . . . . . Follow-up Attacks . | . . . . . . . Damage Inflicted 2271 | 217 855 156 . 191 69 783 Guns 1998 | 217 855 156 . 191 69 510 Cannons 273 | . . . . . . 273 Explosions . | . . . . . . . Melee . | . . . . . . . Ramming . | . . . . . . . Kinetic 1082 | 217 685 . . . . 180 Thermal 1189 | . 170 156 . 191 69 603 Explosive . | . . . . . . . Electromagnetic . | . . . . . . . Impact . | . . . . . . . Slashing . | . . . . . . . Piercing . | . . . . . . . Highest Corruption . | . . . . . . . Average Corruption . | . . . . . . . Corruption Purged . | . . . . . . . Corruption Blocked . | . . . . . . . Overload Shots . | . . . . . . . Overflow Damage . | . . . . . . . Projectiles . | . . . . . . . Explosions . | . . . . . . . Melee . | . . . . . . . Knockbacks 2 | . . . . . . 2 Impact . | . . . . . . . Kinetic 2 | . . . . . . 2 Secondary . | . . . . . . . Self-Inflicted Damage . | . . . . . . . Shots . | . . . . . . . Rammed . | . . . . . . . Targets Rammed . | . . . . . . . Kicked . | . . . . . . . Crushed . | . . . . . . . Highest Temperature 294 | . 170 235 . 294 . 8 Average Temperature 85 | . 46 129 . 100 . 7 Received Heat Transfer 561 | . 66 9 . 81 36 369 Siege Activations . | . . . . . . . Martial Activations . | . . . . . . . Shielding Activations . | . . . . . . . Robots Disrupted . | . . . . . . . Combat Hostiles . | . . . . . . . Robots Corrupted . | . . . . . . . Combat Hostiles . | . . . . . . . Parts Fried . | . . . . . . . Impact Corruptions . | . . . . . . . Robots Melted . | . . . . . . . Combat Hostiles . | . . . . . . . Parts Melted 4 | . 1 . . . . 3 Heat Transferred 3108 | . 518 407 . 481 296 1406 Parts Sabotaged . | . . . . . . . Parts Stolen . | . . . . . . . Parts Stripped . | . . . . . . . Power Chain Reactions . | . . . . . . . Alert | -11 -10 -10 -10 -9 -8 -8 ------- Run | Yrd Mat Min Exi Min Mat Gar Maximum Alert Level 1 | . 1 . . . . . Low Security (%) 94 | 100 87 100 . 100 100 100 Level 1 5 | . 12 . . . . . Level 2 . | . . . . . . . Level 3 . | . . . . . . . Level 4 . | . . . . . . . Level 5 . | . . . . . . . High Security . | . . . . . . . Max Security . | . . . . . . . Peak Influence 229 | 5 229 50 . 80 17 108 Initial . | . . . . . . . Average 61 | 1 110 16 . 25 1 43 Influence Increases 946 | 20 465 59 . 194 18 190 Destroy 0b10 Robot/C 588 | . 300 20 . 140 16 112 Destroy 0b10 Robot/NC 60 | 20 30 5 . 5 . . Destroy Leader 126 | . 70 10 . 30 . 16 Allied During Kill 6 | . . . . 4 . 2 Successful Hack 44 | . 35 9 . . . . Select Force Hacks 30 | . 30 . . . . . Anti-Garrison Action 40 | . . . . . . 40 Destroy Structure 7 | . . . . . 2 5 Lose Combat Pursuer 45 | . . 15 . 15 . 15 Influence Decreases 896 | 20 464 60 . 194 17 141 Entered New Map 2 | . . 1 . . . 1 Time Decay 735 | 20 454 59 . 185 17 . Lost Part 130 | . 10 . . . . 120 Lost Ally 29 | . . . . 9 . 20 Squads Dispatched 5 | . 4 . . 1 . . Investigation 2 | . 1 . . 1 . . Extermination . | . . . . . . . Reinforcement 3 | . 3 . . . . . Assault . | . . . . . . . Garrison . | . . . . . . . Intercept . | . . . . . . . Searches Triggered . | . . . . . . . Construction Impeded . | . . . . . . . Haulers Reinforced . | . . . . . . . Active Scanning Responses . | . . . . . . . Cargo Convoy Interrupts . | . . . . . . . Stealth | -11 -10 -10 -10 -9 -8 -8 --------- Run | Yrd Mat Min Exi Min Mat Gar Distress Signals 4 | . 3 1 . . . . Communications Jammed . | . . . . . . . Distress Signals . | . . . . . . . Times Spotted 44 | . 24 1 . 7 1 11 Peak Tracking Total 5 | . 5 2 . 3 1 5 Tactical Retreats 3 | . . 1 . 1 . 1 Traps | -11 -10 -10 -10 -9 -8 -8 ------- Run | Yrd Mat Min Exi Min Mat Gar Traps Triggered 2 | . . . . . . 2 Indirectly . | . . . . . . . Trap Hack Attempts . | . . . . . . . Triggered . | . . . . . . . Disarmed . | . . . . . . . Reprogrammed . | . . . . . . . Reused . | . . . . . . . Traps Extracted . | . . . . . . . Installed . | . . . . . . . Triggered . | . . . . . . . Machines | -11 -10 -10 -10 -9 -8 -8 ---------- Run | Yrd Mat Min Exi Min Mat Gar Machines Disabled 2 | . . . . . . 2 Max in Single Turn 1 | . . . . . . 1 Garrison Relay 1 | . . . . . . 1 Machines Repaired . | . . . . . . . Machines Dismantled . | . . . . . . . Machines Sabotaged . | . . . . . . . Overloaded Fab Kills . | . . . . . . . Hacking | -11 -10 -10 -10 -9 -8 -8 --------- Run | Yrd Mat Min Exi Min Mat Gar Machines Accessed 13 | . 7 1 2 1 2 . Terminals 7 | . 5 1 . . 1 . Fabricators . | . . . . . . . Repair Stations . | . . . . . . . Recycling Units 2 | . 2 . . . . . Scanalyzers . | . . . . . . . Garrison Access 1 | . . . . . 1 . Total Hacks 40 | . 28 5 2 1 4 . Successful 24 | . 16 3 2 1 2 . Failed 16 | . 12 2 . . 2 . Catastrophic 3 | . 2 1 . . . . Database Lockouts . | . . . . . . . Manual 26 | . 19 4 1 . 2 . Terminals 28 | . 21 5 . . 2 . Fabricators . | . . . . . . . Repair Stations . | . . . . . . . Recycling Units 7 | . 7 . . . . . Scanalyzers . | . . . . . . . Garrison Access 2 | . . . . . 2 . Terminal Hacks 12 | . 7 2 2 1 . . Record 1 | . . . 1 . . . Prototype ID Bank 2 | . 2 . . . . . Open Door 1 | . . . . 1 . . Branch Access Points 1 | . 1 . . . . . Terminal Index 1 | . . 1 . . . . Hauler Manifests 1 | . 1 . . . . . Registered Components 1 | . 1 . . . . . Zone Layout 3 | . 2 1 . . . . Proto ID Catalog 1 | . . . 1 . . . Fabricator Hacks . | . . . . . . . Repair Station Hacks . | . . . . . . . Recycling Unit Hacks 1 | . 1 . . . . . Retrieve Components 1 | . 1 . . . . . Scanalyzer . | . . . . . . . Garrison Access Hacks 1 | . . . . . 1 . Unlock Access 1 | . . . . . 1 . Unauthorized Hacks 10 | . 8 1 . . 1 . Terminals 9 | . 7 1 . . 1 . Botnet 2 | . 2 . . . . . Skim 7 | . 5 1 . . 1 . Fabricators . | . . . . . . . Repair Stations . | . . . . . . . Recycling Units 1 | . 1 . . . . . Tunnel 1 | . 1 . . . . . Scanalyzers . | . . . . . . . Garrison Access . | . . . . . . . Data Cores Recovered . | . . . . . . . Used . | . . . . . . . Hacking Detections 9 | . 7 1 . . 1 . Full Trace Events . | . . . . . . . Feedback Events . | . . . . . . . Feedback Blocked . | . . . . . . . Robot Schematics Acquired . | . . . . . . . Robots Built . | . . . . . . . Authchips . | . . . . . . . Time . | . . . . . . . Total Robot Build Rating . | . . . . . . . Part Schematics Acquired . | . . . . . . . Parts Built . | . . . . . . . Authchips . | . . . . . . . Time . | . . . . . . . Total Part Build Rating . | . . . . . . . Parts Repaired . | . . . . . . . Time . | . . . . . . . Parts Recycled . | . . . . . . . Recycled Matter . | . . . . . . . Retrieved Matter . | . . . . . . . Retrieved Components 9 | . 9 . . . . . Parts Scanalyzed . | . . . . . . . Part Schematics Acquired . | . . . . . . . Parts Damaged . | . . . . . . . Bothacking | -11 -10 -10 -10 -9 -8 -8 ------------ Run | Yrd Mat Min Exi Min Mat Gar Used RIF Installer 1 | . . . . . . 1 Robots Hacked . | . . . . . . . Non-combat . | . . . . . . . Combat . | . . . . . . . Robot Hacks Applied . | . . . . . . . Relay Couplers Released 3 | . . . . . . 3 Machine Destruction 3 | . . . . . . 3 Fabnet Peak Effective % . | . . . . . . . Robots Rewired . | . . . . . . . Allies Hacked . | . . . . . . . Hacks Repelled . | . . . . . . . Allies | -11 -10 -10 -10 -9 -8 -8 -------- Run | Yrd Mat Min Exi Min Mat Gar Total Allies 1 | . . . . 1 . . Largest Group 1 | . . . . 1 . . Highest-Rated Group 31 | . . . . 31 . . Highest-Rated Ally 31 | . . . . 31 . . Total Orders . | . . . . . . . Ally Attacks 17 | . . . . 12 . 5 Total Damage 421 | . . . . 153 . 268 Kills 4 | . . . . 3 . 1 Allies Corrupted . | . . . . . . . Allies Melted . | . . . . . . . Turrets Deployed 1 | . . . . . . 1 Intel | -11 -10 -10 -10 -9 -8 -8 ------- Run | Yrd Mat Min Exi Min Mat Gar Active Infowar (turns) 2318 | 22 1285 175 382 454 . . Seismic 2318 | 22 1285 175 382 454 . . Robot Analysis Total . | . . . . . . . Derelict Logs Recovered 3 | . . 1 . 2 . . Drone Launches . | . . . . . . . Drone Recoveries . | . . . . . . . Exploration | -11 -10 -10 -10 -9 -8 -8 ------------- Run | Yrd Mat Min Exi Min Mat Gar Turns Passed 3243 | 153 1285 175 382 627 275 346 Spaces Moved 2101 | 74 719 142 351 485 181 149 Core 21 | 20 . . . . . 1 Treads 206 | 54 152 . . . . . Legs . | . . . . . . . Wheels 1874 | . 567 142 351 485 181 148 Hover . | . . . . . . . Flight . | . . . . . . . Fastest Speed 50 | 50 90 105 105 105 110 125 Average Speed 112 | 130 112 105 105 109 122 130 Slowest Speed 750 | 160 160 105 105 120 125 750 Overloaded Moves . | . . . . . . . Propulsion Burnouts . | . . . . . . . Robots Hopped . | . . . . . . . Potential Cave-ins . | . . . . . . . Cave-ins Triggered . | . . . . . . . Exploration Rate (%) 49 | 4 86 56 69 91 17 26 Regions Visited 6 Branch Regions 3 Pre-discovered Areas 4 | . 2 . 1 1 . . Known Exits Taken 3 | . 1 1 . . 1 . Unknown Exits Taken 3 | 1 . . 1 1 . . Scrap Searched 4 | . . 1 . 3 . . Spaces Dug 1 | . . . . . 1 . Terrain Destroyed 1 | . . . . . 1 . Melee . | . . . . . . . Projectile 1 | . . . . . 1 . AOE . | . . . . . . . Terrain Rammed . | . . . . . . . Walls Destroyed . | . . . . . . . Machines Disabled . | . . . . . . . Actions | -11 -10 -10 -10 -9 -8 -8 --------- Run | Yrd Mat Min Exi Min Mat Gar Total 2736 | 107 1080 153 369 566 223 238 Wait 333 | . 254 4 1 41 10 23 Move 2095 | 73 718 141 350 484 180 149 Hop . | . . . . . . . Pick Up 68 | 14 22 1 10 11 8 2 Fast Attach 5 | 1 . . . . 4 . Attach 20 | 6 3 . . 2 3 6 Detach . | . . . . . . . Swap 14 | . 6 . . 4 3 1 Drop 44 | . 13 . 8 13 8 2 Fire 141 | 13 64 7 . 11 7 39 Melee . | . . . . . . . Ram . | . . . . . . . Kick . | . . . . . . . Crush . | . . . . . . . Escape Stasis 16 | . . . . . . 16 Rewire . | . . . . . . . Trap . | . . . . . . . Miscellaneous . | . . . . . . . Route ------- -11/Scrapyard -10/Materials (discovered 6 exits: *Mat x3 / *Min x2 / *Sub) -10/Mines (discovered 4 exits: *Mat x2 / *Exi / Sub) -10/Exiles -9/Mines -8/Materials (discovered 3 exits: Fac x2 / Gar) -8/Garrison History --------- Turn | Location | Event 6 | -11/Scrapyard | Discovered new exit (range 16) 154 | -11/Scrapyard | Entered Materials 305 | -10/Materials | Build established: Mutant 367 | -10/Materials | Discovered new exit (range 16) 461 | -10/Materials | Discovered new exit (range 10) 728 | -10/Materials | Identified exit to Mines 1077 | -10/Materials | Learned location of 2 exits from Mines 1142 | -10/Materials | Learned 2 Mines zone layouts 1207 | -10/Materials | Discovered new exit (range 9) 1248 | -10/Materials | Learned Storage emergency access door positions 1314 | -10/Materials | Learned 2 Mines zone layouts 1398 | -10/Materials | Identified exit to Materials 1439 | -10/Materials | Entered Mines 1440 | -10/Mines | Identified exit to Subcaves 1441 | -10/Mines | Identified exit to Exiles 1497 | -10/Mines | Assembled infested the area 1547 | -10/Mines | Learned location of 1 exit from Materials 1568 | -10/Mines | Discovered exit to Materials (range 11) 1608 | -10/Mines | Deemed a non-threat by the Exiles lab entrance 1614 | -10/Mines | Entered Exiles 1647 | -10/Exiles | Met 8R-AWN 1664 | -10/Exiles | Met EX-HEX 1716 | -10/Exiles | Met EX-DEC 1733 | -10/Exiles | Learned location of Zion (-6) 1833 | -10/Exiles | Met EX-BIN 1848 | -10/Exiles | Aligned with FarCom system 1849 | -10/Exiles | Given EX-Vault access code 1873 | -10/Exiles | Opened EX-Vault 1883 | -10/Exiles | Found Modified TNC 1887 | -10/Exiles | Found 0b10 Alert Chip 1891 | -10/Exiles | Found Deploy-a-Sentry 1894 | -10/Exiles | Found Deploy-a-Sentry 1896 | -10/Exiles | Found Deploy-a-Sentry 1919 | -10/Exiles | Warned to stay clear of 0b10 Research branches 1983 | -10/Exiles | Discovered new exit (range 14) 1996 | -10/Exiles | Stole three prototypes: Modified TNC, 0b10 Alert Chip, Deploy-a-Sentry 1996 | -10/Exiles | Entered Mines 1999 | -9/Mines | Received a Mining Laser from a helpful Derelict 2281 | -9/Mines | Learned 8 Materials zone layouts 2397 | -9/Mines | Met a Derelict shopkeep closing up shop 2529 | -9/Mines | Discovered new exit (range 14) 2623 | -9/Mines | Entered Materials 2623 | -8/Materials | Evolved 4 slots: Utility x4 2624 | -8/Materials | Identified exit to Factory 2729 | -8/Materials | Identified exit to Garrison 2898 | -8/Materials | Entered Garrison 2920 | -8/Garrison | Installed Relay Interface Framework 2946 | -8/Garrison | Triggered checkpoint 2976 | -8/Garrison | Garrison Relay disabled 3156 | -8/Garrison | Triggered checkpoint 3169 | -8/Garrison | Triggered checkpoint 3183 | -8/Garrison | Triggered checkpoint 3198 | -8/Garrison | DAS Turret deployed 3222 | -8/Garrison | Core integrity fell below 50% 3244 | -8/Garrison | Self-destructed Last Messages --------------- 03202_ Slug penetrates DAS Turret. 03203_ G-47 Trooper knocked back. 03205_ DAS Turret heat spikes uncontrollably. 03205_ Slug penetrates DAS Turret. 03205_ Destroyed Aluminum Leg. 03205_ Destroyed Lgt. Nuclear Core. 03205_ G-47 Trooper knocked back. 03206_ DAS Turret heat damages core (-30). 03207_ DAS Turret heat damages core (-25). 03208_ G-47 Trooper Imp. Heat Sink blasted off. 03208_ G-47 Trooper knocked back. 03208_ Penetrated by Slug. 03210_ G-50 Soldier knocked back. 03211_ Penetrated by Slug. 03214_ Cooling System destroyed. 03217_ Core Shielding destroyed. 03217_ Penetrated by Slug. 03224_ H-55 Commando destroyed. 03227_ Adv. Assault Cannon destroyed. 03231_ 0b10 Alert Chip destroyed. Map ----- +----------------------------------------------------+ | ?????????????????????????????????????????????????? | | ?????????????????????????????????????????????????? | | ?????????????????????????????????????????????????? | | ?????????????????????????????????????????????????? | | ?????????????????????????????????????????????????? | | ?????????????????????????????????????????????????? | | ?????????????????????????????????????????????????? | | ??????????????????????#####??? ??????????????????? | | ?????????????????????# #??? ??????????????????? | | ????????????????## ?# #??? ??????????????????? | | ????????????????# ? ? ???????????????????? | | ???????????????? ? % ?? ??????????????????? | | ???????????????? !%"? #?????????????????? | | ????????????????# ## % #? #?????????????????? | | ??????????????### ## ## #?????????????????? | | ??????????????# "?????????????????? | | ??????????????# "?????????????????? | | ??????????????# ? "?????????????????? | | ??????????????? g ? "C????????????????? | | ????????????????# ##^ ^^#? #?????????????????? | | ????????????????# ##%g ## #?????????????????? | | ????????????????# %/ #?????????????????? | | ????????????????# =%g! #?????????????????? | | ????????????????# * %! #?????????????????? | | ????????????????# ##=% ## #?????????????????? | | ????????????????# ##% %@#??????????????????????? | | ????????????????# #######??????????????????????? | | ????????????????# #????????????????????????????? | | ????????????????# #????????????????????????????? | | ????????????????# #????????????????????????????? | | ????????????????# #????????????????????????????? | | ################# #????????????????????????????? | | " #????????????????????????????? | | "%" #????????????????????????????? | | " #????????????????????????????? | | ######## ###########????????????????????????????? | | ?????### #######????????????????????????????????? | | ?????#" = = ""#????????????????????????????????? | | ?????#" = !"#????????????????????????????????? | | ?????# ! !"#????????????????????????????????? | | ?????#"! !"#????????????????????????????????? | | ?????#"! !"#????????????????????????????????? | | ?????# ! !"#????????????????????????????????? | | ?????#"! !"#????????????????????????????????? | | ?????#"" ""#????????????????????????????????? | | ?????#"""!!!!"""#????????????????????????????????? | | ?????#""""""""""#????????????????????????????????? | | ?????############????????????????????????????????? | | ?????????????????????????????????????????????????? | | ?????????????????????????????????????????????????? | +----------------------------------------------------+ Best States ------------- Heat Dissipation 75 Energy Generation 18 Energy Capacity 310 Matter Stores 300 Matter Capacity 300 Sight Range 16 Terrain Scan Density 10 Core Shielding 20 Evasion (%) 50 Recoil Reduction 2 Salvage Targeting 2 Authchip Count 1 Item Schematics ----------------- None Robot Schematics ------------------ None Fabricated ------------ Nothing Repaired ---------- Nothing Alien Tech Used ----------------- None Achievements -------------- None Challenges ------------ None Game ------ Seed MyomerNanofilamentsSword Manual? 0 Play Time 00:28:26 Cumulative 350.3 hours Start 2025.10.03 @ 13:13:07 End 2025.10.04 @ 10:34:52 Sessions 2 Manual Loads 0 Difficulty Rogue Special Mode None Game No. 457 Rogue 457 Adventurer 0 Explorer 0 Win Type - Total 11 Types 6/0/1/2/1/0/1/0/0/0 Lore% 87 Gallery% 83 Achievement% 70 Wizard Run 0 Options --------- Layout 0 ASCII 0 Keyboard 0 Movement Mouse Keybinds 0 Fullscreen 1 Font 18/X11 Map View 76x50 Zoom Use 0% Tactical HUD 1 Map Filters NONE Filters NONE Steam 1 RUN: ef315244-a7ee-458e-b09a-6c39401f7593